[Event "5th Baskent University Open 2022"]
[Site "Ankara"]
[Date "2022.07.04"]
[Round "4.9"]
[White "Unver, Cumali"]
[Black "Ozer, Omer Faruk"]
[Result "0-1"]
[ECO "B30"]
[WhiteElo "2046"]
[BlackElo "2317"]
[Annotator "TA"]
[PlyCount "76"]
[EventDate "2022.07.02"]
[EventType "swiss"]
[EventCountry "TUR"]
[SourceTitle "playchess.com"]
[Source "ChessBase"]
[SourceQuality "1"]
[TimeControl "5400+30"]

{[%evp 11,76,24,31,21,23,12,31,22,28,26,32,33,33,41,44,33,31,17,35,20,16,18,39,0,10,0,0,-16,19,-87,-92,-85,-92,-110,0,-108,-105,-102,-102,-102,0,0,0,0,0,0,0,-40,0,-65,0,-71,-71,-70,-71,-72,-74,-111,-76,-348,-334,-29989,-29990,-29990,-64,-29995,-1114]} 1. e4 {[%emt 0:02:00]} c5 {[%emt 0:07:00]} 2. Nf3 {[%emt 0:00:30]} Nc6 {[%emt 0:00:00]} 3. Bb5 {[%emt 0:01:30]} e6 {[%emt 0:00:00]} 4. O-O {[%emt 0:01:30]} Nge7 {[%emt 0:02:30]} 5. Re1 {[%emt 0:00:30]} Ng6 {[%emt 0:06:30]} 6. c3 {[%emt 0:07:30]} d5 {[%emt 0:05:30]} 7. Qa4 {[%emt 0:08:30] B30: Sicilian: 2...Nc6 3 Bb5, lines without ...g6.} Be7 {[%emt 0:06:30]} 8. d4 {[%emt 0:05:30] [#]} dxe4 $146 {[%emt 0:12:30]} ({Predecessor:} 8... O-O 9. exd5 Qxd5 10. dxc5 Bxc5 11. Nbd2 Be7 12. Nc4 Qd8 13. Bxc6 bxc6 14. Nd4 c5 {½-½ (31) Wang,H (2752)-Carlsen,M (2861) Wijk aan Zee 2013}) 9. Bxc6+ {[%emt 0:01:30] White is slightly better.} (9. Rxe4 Bd7 10. Qd1 cxd4 $15) 9... bxc6 {[%emt 0:00:00]} 10. Qxc6+ {[%emt 0:00:30]} Bd7 {[%emt 0:00:00]} 11. Qxe4 {[%emt 0:00:00]} Rc8 {[%emt 0:00:30]} 12. Ne5 {[%emt 0:05:00]} cxd4 {[%emt 0:10:30]} 13. cxd4 {[%emt 0:01:30]} f5 {[%emt 0:08:30]} 14. Qe2 {[%emt 0:07:30][%cal Od4d5]} Nxe5 {[%emt 0:00:30]} 15. dxe5 {[%emt 0:04:30]} O-O {[%emt 0:02:30][%cal Bh8f8,Bf8f7,Bf7g7][%mdl 32]} 16. Nc3 {[%emt 0:01:30]} Qe8 {[%emt 0:04:30]} 17. f4 {[%emt 0:00:30]} Bc6 {[%emt 0:09:30]} 18. Be3 {[%emt 0:01:30]} g5 {[%emt 0:00:30]} 19. Rad1 {[%emt 0:07:30]} Rf7 {[%emt 0:02:30]} 20. Qa6 {[%emt 0:05:30]} (20. fxg5 $11 f4 21. Bf2 (21. Bxa7 f3 $15)) 20... gxf4 $17 {[%emt 0:00:59]} 21. Bxf4 {[%emt 0:00:30]} Rg7 {[%emt 0:07:01]} 22. Rd2 {[%emt 0:01:30]} Rd8 {[%emt 0:00:34]} ({Black should try} 22... Bc5+ $17 23. Be3 Bb7) 23. Ree2 {[%emt 0:02:30]} (23. Rf2 $11) 23... Bc5+ {[%emt 0:00:36]} 24. Kf1 {[%emt 0:04:30] [#] Threatens to win with Rxd8.} Bf3 $1 {[%emt 0:02:28][%mdl 512]} 25. Rf2 {[%emt 0:08:30]} Bxf2 {[%emt 0:01:38] A strong pair of Bishops.} ({Black should play} 25... Bb7 $17 26. Qb5 Bxf2 27. Qxe8+ Rxe8 28. Rxf2 Rd8) 26. Rxd8 $11 {[%emt 0:00:30]} Bxg2+ {[%emt 0:04:40]} 27. Kxf2 {[%emt 0:00:30]} Qxd8 {[%emt 0:00:00] Chess con chili.} 28. Qxe6+ {[%emt 0:00:30]} Kh8 {[%emt 0:00:00]} 29. Qxf5 {[%emt 0:04:13]} Bc6 {[%emt 0:03:23]} (29... Bb7 $5 {[%cal Rd8b6]} 30. Be3 Qh4+ 31. Ke2 Qxh2+ 32. Kd3 Ba6+ 33. Kd4 Qh4+ 34. Ne4 Bb7 35. Qf8+ Rg8 36. Qf6+ Qxf6 37. Nxf6 Rd8+ 38. Kc4 Rc8+ 39. Kd3 Kg7 40. Bxa7 Kg6 $17) 30. Bg3 {[%emt 0:03:54]} ({Of course not} 30. Qf6 Qxf6 31. exf6 Rg2+ 32. Ke3 Kg8 $17) (30. Ne2 $11) 30... Qd4+ {[%emt 0:01:03]} (30... Kg8 $15 31. Ke1 (31. Qe6+ Rf7+ 32. Ke1 Bf3 $17) 31... Rg6) 31. Ke2 {[%emt 0:00:52] [#]} (31. Ke1 $1 $11 {keeps the balance.} Qe3+ 32. Ne2) 31... Qc4+ $1 $17 {[%emt 0:01:38][%mdl 1024] Black has strong compensation.} 32. Qd3 {[%emt 0:01:51]} Qg4+ {[%emt 0:00:02]} 33. Ke1 {[%emt 0:00:36]} Rd7 $36 {[%emt 0:01:45][%mdl 2048] Inhibits Qd8+. Black is on the roll.} 34. Qf1 {[%emt 0:02:09] And now Qf8+ would win.} Kg8 {[%emt 0:01:03] Against Qf8+. Black is much more active.} 35. Qf6 $2 {[%emt 0:01:19][%mdl 8192] [#]} (35. Qf4 $17 Qxf4 36. Bxf4) 35... Bb5 $1 $19 {[%emt 0:00:30][%cal Od7d1] ...Rd1+! is the strong threat.} 36. Qh4 $2 {[%emt 0:07:38] [#]} (36. Nxb5 {gets mated.} Qe4+ 37. Kf1 Rd1+) (36. Qf2 $19 Bc4 37. Bh4) 36... Rd1+ $3 {[%emt 0:00:50][%mdl 512]} 37. Kf2 {[%emt 0:00:00]} Rf1+ $2 {[%emt 0:00:32]} (37... Qf5+ {mates} 38. Qf4 Rf1+ 39. Kg2 Rxf4 40. Bxf4 Qxf4 41. Nxb5 Qd2+ 42. Kg3 Qd3+ 43. Kf4 Qf1+ 44. Kg4 Qxb5 45. Kf5 Qxb2 46. e6 Qxa2 47. h4 a5 48. Kf6 a4 49. Ke5 a3 50. Kd6 Qe2 51. e7 a2 52. Kd7 Qb5+ 53. Kd6 a1=Q 54. e8=Q+ Qxe8 55. Kc5 Qae5+ 56. Kb6 Q8b5+ 57. Ka7 Qeb8#) 38. Kg2 $2 {[%emt 0:00:13][%mdl 8192]} (38. Ke3 $15 Rf3+ 39. Kd2 Qd7+ 40. Kc1) 38... Qf3+ {[%emt 0:00:00] Weighted Error Value: White=0.75/Black=0.35} 0-1

[Event "5th Baskent University Open 2022"]
[Site "Ankara"]
[Date "2022.07.04"]
[Round "4.11"]
[White "Ozsoy, Alimert"]
[Black "Ozturk, Efe Hakan"]
[Result "1/2-1/2"]
[ECO "E05"]
[WhiteElo "2263"]
[BlackElo "2115"]
[Annotator "TA"]
[PlyCount "97"]
[EventDate "2022.07.02"]
[EventType "swiss"]
[EventCountry "TUR"]
[SourceTitle "playchess.com"]
[Source "ChessBase"]
[SourceQuality "1"]
[TimeControl "5400+30"]

{[%evp 22,97,0,-13,6,-4,0,-6,1,5,11,-25,-20,-19,-9,-18,-18,-19,-27,-21,-18,-16,-9,-19,-10,-19,0,0,0,0,0,0,0,0,0,0,0,0,0,0,0,0,0,0,0,0,0,0,0,0,0,0,0,0,0,0,0,0,0,0,0,0,0,0,1,0,0,0,0,-8,-8,-8,0,0,0,0,0,0]} 1. Nf3 {[%emt 0:01:00]} Nf6 {[%emt 0:01:00]} 2. g3 {[%emt 0:00:30]} d5 {[%emt 0:02:30]} 3. Bg2 {[%emt 0:00:30]} e6 {[%emt 0:00:30]} 4. d4 {[%emt 0:00:00]} Be7 {[%emt 0:00:00]} 5. O-O {[%emt 0:00:00]} O-O {[%emt 0:00:00]} 6. c4 {[%emt 0:00:30]} dxc4 {[%emt 0:00:00]} 7. Qc2 {[%emt 0:00:30]} a6 {[%emt 0:01:00]} 8. Qxc4 {[%emt 0:00:30]} b5 {[%emt 0:01:30]} 9. Qc2 {[%emt 0:00:30]} Bb7 {[%emt 0:00:30]} 10. Bf4 {[%emt 0:03:30]} Nc6 {[%emt 0:09:30]} 11. Nc3 {[%emt 0:15:30]} Nb4 {[%emt 0:23:30]} 12. Qb1 {[%emt 0:06:30]} c5 {[%emt 0:07:30] E05: Open Catalan: 5 Nf3 Be7.} 13. dxc5 {[%emt 0:04:30]} Bxc5 {[%emt 0:00:00] [#]} 14. Bg5 $146 {[%emt 0:08:30]} ({Predecessor:} 14. Be5 Ng4 15. a3 Nxe5 16. Nxe5 Bxg2 17. Kxg2 Nd5 18. Ne4 Bd6 19. Nf3 Be7 20. Rc1 {½-½ (38) Turner,M (2545)-McPhillips,J (2401) Coventry 2017}) 14... Qb6 {[%emt 0:19:00]} 15. Bxf6 {[%emt 0:02:30]} gxf6 {[%emt 0:00:00]} 16. e3 {[%emt 0:08:30]} Rfd8 {[%emt 0:04:00]} 17. a3 {[%emt 0:01:30]} Nd5 {[%emt 0:04:30]} 18. Nxd5 {[%emt 0:03:30]} Bxd5 {[%emt 0:00:30]} 19. b4 {[%emt 0:01:30]} Bf8 {[%emt 0:07:02]} 20. Nd4 {[%emt 0:01:30]} Bxg2 {[%emt 0:01:10] The position is equal.} 21. Kxg2 {[%emt 0:00:30]} Qb7+ {[%emt 0:00:30]} 22. Kg1 {[%emt 0:00:30]} f5 {[%emt 0:01:05]} 23. Ra2 {[%emt 0:00:30]} a5 {[%emt 0:02:44]} 24. Rc2 {[%emt 0:04:30]} axb4 {[%emt 0:01:56]} 25. axb4 {[%emt 0:00:00]} Rdc8 {[%emt 0:02:30]} 26. Rxc8 {[%emt 0:02:00]} Rxc8 {[%emt 0:00:18]} 27. Rc1 {[%emt 0:00:30]} Rxc1+ {[%emt 0:03:14]} 28. Qxc1 {[%emt 0:00:30]} Bxb4 $11 {[%emt 0:00:04][%mdl 4096] Endgame KQB-KQN} 29. Qf1 {[%emt 0:01:30]} Bc3 {[%emt 0:04:01] [#] Strongly threatening ...Bxd4.} 30. Qxb5 {[%emt 0:02:30]} Qxb5 {[%emt 0:02:28]} 31. Nxb5 {[%emt 0:00:30] KB-KN} Be5 {[%emt 0:00:06]} 32. Kf1 {[%emt 0:00:00]} Kf8 {[%emt 0:00:40]} 33. Ke2 {[%emt 0:01:00]} Ke7 {[%emt 0:00:30]} 34. Kd3 {[%emt 0:00:00]} Kd7 {[%emt 0:00:38]} 35. h3 {[%emt 0:00:00]} Bf6 {[%emt 0:02:04]} 36. Kc4 {[%emt 0:00:00]} h6 {[%emt 0:01:00]} 37. Na3 {[%emt 0:01:00]} Kd6 {[%emt 0:00:49]} 38. Nc2 {[%emt 0:00:30]} Be5 {[%emt 0:00:32]} 39. Nb4 {[%emt 0:00:30]} Bf6 {[%emt 0:00:48]} 40. Nd3 {[%emt 0:00:00]} e5 {[%emt 0:00:08]} 41. Nb4 {[%emt 0:01:00]} Bd8 {[%emt 0:00:53]} 42. Nd5 {[%emt 0:00:30]} Ba5 {[%emt 0:00:13]} 43. g4 {[%emt 0:03:30]} Ke6 {[%emt 0:00:30]} 44. gxf5+ {[%emt 0:03:30]} Kxf5 {[%emt 0:00:01]} 45. f3 {[%emt 0:01:30]} Kg5 {[%emt 0:00:43] [#] White must now prevent ...Kh4.} 46. Kd3 {[%emt 0:00:30]} f5 {[%emt 0:00:57]} 47. f4+ {[%emt 0:00:30]} exf4 {[%emt 0:00:19]} 48. exf4+ {[%emt 0:00:30]} Kh4 {[%emt 0:00:30]} 49. Ne3 {[%emt 0:00:00] An interesting draw.  Weighted Error Value: White=0.02 (flawless) /Black=0.03 (flawless)} 1/2-1/2

[Event "5th Baskent University Open 2022"]
[Site "Ankara"]
[Date "2022.07.04"]
[Round "4.12"]
[White "Citak, Selim"]
[Black "Yerden, Huseyin Eren"]
[Result "1/2-1/2"]
[ECO "E36"]
[WhiteElo "2176"]
[BlackElo "2050"]
[Annotator "RC"]
[PlyCount "110"]
[EventDate "2022.07.02"]
[EventType "swiss"]
[EventCountry "TUR"]
[SourceTitle "playchess.com"]
[Source "ChessBase"]
[SourceQuality "1"]
[TimeControl "5400+30"]

1. d4 {[%emt 0:01:00]} Nf6 {[%emt 0:01:00]} 2. c4 {[%emt 0:00:30]} e6 {[%emt 0:00:30]} 3. Nc3 {[%emt 0:00:00]} Bb4 {[%emt 0:00:00]} 4. Qc2 {[%emt 0:00:00]} O-O {[%emt 0:00:00]} 5. a3 {[%emt 0:00:30]} Bxc3+ {[%emt 0:01:30]} 6. Qxc3 {[%emt 0:00:30]} d5 {[%emt 0:03:30]} 7. Bg5 {[%emt 0:00:30]} c6 {[%emt 0:00:30]} 8. Nf3 {[%emt 0:03:30]} dxc4 {[%emt 0:04:30]} 9. Qxc4 {[%emt 0:03:30]} Qa5+ {[%emt 0:05:30]} 10. b4 {[%emt 0:05:30]} Qd5 {[%emt 0:00:30]} 11. Qxd5 {[%emt 0:07:30]} cxd5 {[%emt 0:00:30]} 12. Rc1 {[%emt 0:07:30]} Nbd7 {[%emt 0:07:30]} 13. e3 {[%emt 0:01:30]} Nb6 {[%emt 0:00:30]} 14. Bxf6 {[%emt 0:17:30]} gxf6 {[%emt 0:00:30]} 15. Nd2 {[%emt 0:00:30]} Bd7 {[%emt 0:01:30]} 16. Nb3 {[%emt 0:00:30]} Rfc8 {[%emt 0:01:30]} 17. Rxc8+ {[%emt 0:04:30]} Rxc8 {[%emt 0:01:30]} 18. Nc5 {[%emt 0:02:30]} Be8 {[%emt 0:00:30]} 19. Kd2 {[%emt 0:01:30]} Rc7 {[%emt 0:11:30]} 20. Bd3 {[%emt 0:01:30]} a6 {[%emt 0:01:30]} 21. Ra1 {[%emt 0:01:30]} Bb5 {[%emt 0:01:30]} 22. a4 {[%emt 0:00:30]} Bxd3 {[%emt 0:03:30]} 23. Kxd3 {[%emt 0:00:00]} f5 {[%emt 0:01:30]} 24. f3 {[%emt 0:05:00]} Kg7 {[%emt 0:04:30]} 25. g4 {[%emt 0:02:30]} fxg4 {[%emt 0:01:30]} 26. Rg1 {[%emt 0:00:00]} h5 {[%emt 0:09:30]} 27. h3 {[%emt 0:02:00]} Nc4 {[%emt 0:05:30]} 28. hxg4 {[%emt 0:01:30]} hxg4 {[%emt 0:00:30]} 29. Rxg4+ {[%emt 0:00:30]} Kf8 {[%emt 0:00:30]} 30. a5 {[%emt 0:00:30]} Nd6 {[%emt 0:02:30]} 31. e4 {[%emt 0:01:30]} dxe4+ {[%emt 0:00:30]} 32. fxe4 {[%emt 0:00:00]} Nc8 {[%emt 0:05:30]} 33. Rf4 {[%emt 0:01:00]} Ke7 {[%emt 0:04:30]} 34. Rh4 {[%emt 0:00:30]} Kd6 {[%emt 0:00:30]} 35. Rh8 {[%emt 0:02:30]} Kc6 {[%emt 0:00:30]} 36. Rd8 {[%emt 0:10:04]} Kb5 {[%emt 0:04:05]} 37. Kc3 {[%emt 0:00:51]} b6 {[%emt 0:02:50]} 38. axb6 {[%emt 0:00:05]} Kxb6 {[%emt 0:00:01]} 39. Kc4 {[%emt 0:01:14]} a5 {[%emt 0:03:03]} 40. b5 {[%emt 0:09:05]} e5 {[%emt 0:01:36]} 41. Rh8 {[%emt 0:00:02]} Nd6+ {[%emt 0:08:31]} 42. Kd5 {[%emt 0:00:06]} Nb7 {[%emt 0:02:02]} 43. Rh6+ {[%emt 0:00:22]} Kxb5 {[%emt 0:00:10]} 44. Nxb7 {[%emt 0:01:43]} Rxb7 {[%emt 0:00:05]} 45. Kxe5 {[%emt 0:00:56]} a4 {[%emt 0:00:20]} 46. Rh1 {[%emt 0:00:52]} Re7+ {[%emt 0:01:10]} 47. Kd5 {[%emt 0:01:57]} Rd7+ {[%emt 0:00:30]} 48. Ke5 {[%emt 0:00:30]} Kc4 {[%emt 0:00:00]} 49. d5 {[%emt 0:00:25]} a3 {[%emt 0:00:00]} 50. d6 {[%emt 0:01:39]} a2 {[%emt 0:00:41]} 51. Ra1 {[%emt 0:00:22]} Kb3 {[%emt 0:02:50]} 52. Kd5 {[%emt 0:00:05]} Kb2 {[%emt 0:00:00]} 53. Rxa2+ {[%emt 0:01:02]} Kxa2 {[%emt 0:00:29]} 54. Kc6 {[%emt 0:00:30]} Rd8 {[%emt 0:00:00]} 55. Kc7 {[%emt 0:01:46]} Rh8 {[%emt 0:00:23]} 1/2-1/2

[Event "5th Baskent University Open 2022"]
[Site "Ankara"]
[Date "2022.07.04"]
[Round "4.13"]
[White "Altun, Arda"]
[Black "Sevgi, Volkan"]
[Result "1/2-1/2"]
[ECO "B17"]
[WhiteElo "2213"]
[BlackElo "2305"]
[Annotator "TA"]
[PlyCount "98"]
[EventDate "2022.07.02"]
[EventType "swiss"]
[EventCountry "TUR"]
[SourceTitle "playchess.com"]
[Source "ChessBase"]
[SourceQuality "1"]
[TimeControl "5400+30"]

{[%evp 13,98,0,18,0,24,10,14,0,0,0,8,10,14,5,12,0,0,0,28,28,32,22,25,25,37,26,16,20,27,15,15,12,27,27,27,27,28,31,46,46,51,47,47,47,47,47,47,47,42,42,68,66,60,78,71,78,246,235,232,0,0,0,217,63,304,295,304,337,361,380,297,308,311,8,8,8,8,8,8,0,8,0,8,8,8,8,22]} 1. e4 {[%emt 0:01:00]} c6 {[%emt 0:04:00]} 2. d4 {[%emt 0:00:30]} d5 {[%emt 0:00:00]} 3. Nd2 {[%emt 0:00:00]} dxe4 {[%emt 0:00:00]} 4. Nxe4 {[%emt 0:00:00]} Nd7 {[%emt 0:00:00]} 5. Nf3 {[%emt 0:02:30]} Ngf6 {[%emt 0:00:00]} 6. Nxf6+ {[%emt 0:01:30]} Nxf6 {[%emt 0:00:30]} 7. Bd3 {[%emt 0:00:30]} Bg4 {[%emt 0:01:30][%cal Bc8g4,Bg4h5,Bh5g6][%mdl 32]} 8. Be3 {[%emt 0:07:30] B17: Caro-Kann: Modern Line (4...Nd7).} e6 {[%emt 0:07:30]} 9. h3 {[%emt 0:00:30]} Bh5 {[%emt 0:00:30]} 10. Qe2 {[%emt 0:21:30]} Qd5 {[%emt 0:02:30]} 11. g4 {[%emt 0:07:30]} Bg6 {[%emt 0:14:30]} (11... Nxg4 $5 12. Bc4 (12. hxg4 $2 Bxg4 13. c4 Qxf3 $19) 12... Qf5 $11) 12. Bc4 {[%emt 0:01:30]} Qa5+ {[%emt 0:02:30]} 13. Bd2 {[%emt 0:01:30] [#]} Bb4 $146 {[%emt 0:10:30]} ({Predecessor:} 13... Qb6 14. O-O-O Be4 15. Rhe1 Bd5 16. Ne5 Ne4 17. f3 Nxd2 18. Rxd2 Be7 {½-½ (32) Radivojevic,Z-Damjanovic,D (2290) Vrnjacka Banja 2006}) 14. c3 {[%emt 0:02:30]} Bd6 {[%emt 0:00:30]} 15. Nh4 {[%emt 0:10:30]} O-O-O {[%emt 0:04:30]} (15... Be4 $5 {[%cal Re4h1]} 16. O-O h6 $14) 16. Nxg6 {[%emt 0:01:30]} hxg6 {[%emt 0:00:00]} 17. O-O-O {[%emt 0:01:30]} Qc7 {[%emt 0:02:00]} 18. Qf3 {[%emt 0:06:30]} c5 {[%emt 0:10:30]} 19. dxc5 {[%emt 0:01:30]} Qxc5 {[%emt 0:00:30]} 20. Bb3 {[%emt 0:00:30] Black must now prevent g5.} Qc6 {[%emt 0:00:30]} (20... Bc7 {is more complex.} 21. Be3 Rxd1+ 22. Kxd1 Qd6+) 21. Qxc6+ {[%emt 0:00:30]} bxc6 {[%emt 0:00:30]} 22. Be3 {[%emt 0:03:30]} Kb7 {[%emt 0:04:30]} 23. c4 {[%emt 0:02:30]} Bc7 {[%emt 0:01:30]} 24. Rxd8 {[%emt 0:02:30]} Bxd8 {[%emt 0:03:30]} 25. Rd1 {[%emt 0:13:34]} Bb6 {[%emt 0:13:08]} 26. g5 {[%emt 0:02:29]} Bxe3+ {[%emt 0:00:30]} 27. fxe3 $14 {[%emt 0:00:00][%mdl 4096] Endgame KRB-KRN} Ne4 {[%emt 0:00:54]} 28. Rd7+ {[%emt 0:00:10]} Kb6 {[%emt 0:00:30]} 29. Rxf7 {[%emt 0:00:00]} Rxh3 {[%emt 0:03:31]} 30. Rxg7 {[%emt 0:00:00]} Rh1+ {[%emt 0:01:08]} 31. Kc2 {[%emt 0:00:41]} Rh2+ {[%emt 0:04:53]} 32. Kd3 {[%emt 0:01:32]} Nc5+ {[%emt 0:01:48]} 33. Kc3 {[%emt 0:00:05]} Ne4+ {[%emt 0:03:00]} 34. Kd4 {[%emt 0:01:12]} Nc5 {[%emt 0:02:14]} (34... Rh4 $16) 35. Rxg6 $18 {[%emt 0:01:01]} a5 {[%emt 0:00:47] [#]} 36. Kc3 $2 {[%emt 0:02:20]} (36. Rg8 $1 $18) 36... Ne4+ $1 $11 {[%emt 0:00:04]} 37. Kd4 $2 {[%emt 0:01:32]} (37. Kd3 $11 Nc5+ 38. Kc3) 37... Nc5 $18 {[%emt 0:00:01] [#]} 38. Ke5 $2 {[%emt 0:00:47]} (38. Rg8 $1 $18) 38... Rd2 $2 {[%emt 0:00:57]} ({Better is} 38... a4 $1 $14) 39. Rg8 {[%emt 0:00:33] g6 is the strong threat.} a4 {[%emt 0:00:32] [#]} 40. Bxa4 $1 {[%emt 0:00:59][%mdl 512]} Nxa4 {[%emt 0:00:03] KRN-KR} 41. g6 {[%emt 0:01:04][%cal Bg5g6,Bg6g7][%mdl 32] Threatens to win with g7.} ({Weaker is} 41. Kxe6 Nc5+ 42. Kf7 Rf2+ 43. Ke7 Re2 $14) 41... Rg2 {[%emt 0:00:12]} 42. g7 {[%emt 0:00:19]} ({Not} 42. Kxe6 Nxb2 43. g7 Kc5 $16) 42... Kb7 {[%emt 0:00:18] Prevents Rb8+.} 43. Kxe6 $2 {[%emt 0:01:25]} ({White should try} 43. b3 $18 Nc5 44. Kd6 Ne4+ 45. Kxe6) 43... Nxb2 $11 {[%emt 0:00:48] The position is equal.} 44. Kf6 {[%emt 0:01:13]} Rf2+ $1 {[%emt 0:00:08]} 45. Ke7 {[%emt 0:00:26][%cal Og8b8] And now Rb8+! would win.} Rg2 {[%emt 0:00:30]} 46. Kf6 {[%emt 0:00:30]} Rf2+ $1 {[%emt 0:00:00]} 47. Ke7 {[%emt 0:00:30][%cal Og8b8] Hoping for Rb8+!} Rg2 {[%emt 0:00:00]} 48. c5 {[%emt 0:00:42]} Na4 {[%emt 0:00:21]} 49. Kf7 {[%emt 0:01:09]} Rf2+ {[%emt 0:00:07] Blacks defense is rewarded with a draw.  Weighted Error Value: White=0.24 (precise) /Black=0.14 (very precise)} 1/2-1/2

[Event "5th Baskent University Open 2022"]
[Site "Ankara"]
[Date "2022.07.04"]
[Round "4.14"]
[White "Khoder, Akram"]
[Black "Bicer, Atakan Mert"]
[Result "1-0"]
[ECO "D30"]
[WhiteElo "2038"]
[BlackElo "2368"]
[Annotator "TA"]
[PlyCount "128"]
[EventDate "2022.07.02"]
[EventType "swiss"]
[EventCountry "TUR"]
[SourceTitle "playchess.com"]
[Source "ChessBase"]
[SourceQuality "1"]
[TimeControl "5400+30"]

{[%evp 13,128,25,49,26,35,50,40,41,57,51,37,29,44,50,52,50,51,46,39,0,57,0,0,-40,-39,-36,-35,-40,-19,-13,0,-22,-12,-88,0,0,0,0,0,0,0,0,12,15,18,14,28,-7,0,0,0,-7,0,0,0,0,63,0,20,0,0,0,0,-97,-92,-98,-97,-73,-14,-15,-15,-18,-16,-37,-37,-37,-8,-23,0,-8,-8,-27,-6,-39,-19,-51,-28,-37,-20,-39,-25,-86,-86,-86,-86,-94,-77,-75,-77,-77,-68,-66,-41,-41,-41,-41,-41,-43,-18,-83,-83,-142,-84,-84,-24,-36,-2]} 1. d4 {[%emt 0:01:00]} Nf6 {[%emt 0:01:00]} 2. c4 {[%emt 0:00:00]} e6 {[%emt 0:00:30]} 3. g3 {[%emt 0:00:00]} d5 {[%emt 0:03:30]} 4. Bg2 {[%emt 0:00:00]} c5 {[%emt 0:00:00]} 5. cxd5 {[%emt 0:01:00]} exd5 {[%emt 0:00:00]} 6. Nf3 {[%emt 0:00:00]} Nc6 {[%emt 0:01:30]} 7. O-O {[%emt 0:00:00]} Bg4 {[%emt 0:00:30]} 8. Ne5 {[%emt 0:05:30] D30: Queen's Gambit Declined: Systems without Nc3.} Bf5 {[%emt 0:05:30]} (8... Nxd4 $2 9. Nxg4 (9. Nc3 Be6 $14) 9... Nxg4 10. e3 $18) 9. Nxc6 {[%emt 0:02:30]} bxc6 {[%emt 0:00:30]} 10. Nc3 {[%emt 0:00:00] White is slightly better.} Be7 {[%emt 0:02:30]} 11. dxc5 {[%emt 0:01:00]} Bxc5 {[%emt 0:00:30]} 12. Na4 {[%emt 0:00:30]} Bd6 {[%emt 0:00:30]} 13. Be3 {[%emt 0:01:30]} O-O {[%emt 0:02:30]} 14. Rc1 {[%emt 0:00:30]} Qd7 {[%emt 0:05:30]} 15. Bc5 {[%emt 0:04:30]} Rfe8 {[%emt 0:01:30] [#]} 16. Bd4 $146 {[%emt 0:08:30]} ({Predecessor:} 16. e3 Be4 17. Bxd6 Bxg2 18. Kxg2 Qxd6 19. Qc2 Rac8 20. Nc5 Ne4 21. Nxe4 Rxe4 22. Rfd1 {1-0 (44) Voit,D (2360)-Franco Valencia,A (2089) Chess.com INT 2021}) 16... Re6 {[%emt 0:16:30]} (16... Ne4 $11) 17. Bxf6 {[%emt 0:27:30]} (17. Nc5 $14 Bxc5 18. Rxc5) 17... Rxf6 $11 {[%emt 0:00:30]} 18. e4 {[%emt 0:07:30]} Bxe4 {[%emt 0:02:30]} 19. Bxe4 {[%emt 0:00:30]} dxe4 {[%emt 0:00:30]} 20. Qc2 {[%emt 0:02:30][%csl LRc6,LRe4]} Qg4 {[%emt 0:06:30]} 21. Rfe1 {[%emt 0:02:30]} Re8 {[%emt 0:10:30][%cal Oe4e3]} 22. Re3 {[%emt 0:09:30]} h5 {[%emt 0:08:30]} 23. Qe2 {[%emt 0:01:30]} (23. Qxc6 $11 Re5 24. Qb7) 23... Qf5 {[%emt 0:12:21]} ({Black should play} 23... Rf3 $17 {Threatens to win with ...Bf4.} 24. Rxf3 Qxf3) 24. Rc4 {[%emt 0:02:30]} h4 {[%emt 0:05:19]} 25. Rcxe4 {[%emt 0:01:30]} Rxe4 {[%emt 0:00:06]} 26. Rxe4 {[%emt 0:00:00]} h3 {[%emt 0:01:29]} 27. Nc3 {[%emt 0:03:41]} Bc7 {[%emt 0:05:17][%cal Bd6c7,Bc7b6,Bb6e3][%mdl 32]} 28. Re8+ {[%emt 0:00:30]} Kh7 {[%emt 0:00:02]} 29. Qe4 {[%emt 0:00:31]} Bb6 {[%emt 0:00:12]} 30. Qxf5+ {[%emt 0:00:20]} (30. Re5 $5 {[%cal Re5f5]} Qxe4 31. Nxe4 $14) 30... Rxf5 {[%emt 0:00:30][%mdl 4096] Endgame KRB-KRN} 31. Re2 {[%emt 0:00:00]} Kg6 {[%emt 0:00:35]} 32. Rd2 {[%emt 0:07:32]} f6 {[%emt 0:03:17]} 33. Kf1 {[%emt 0:00:54]} Be3 {[%emt 0:00:40]} 34. Rc2 {[%emt 0:00:38]} Bd4 {[%emt 0:00:35]} (34... Bb6 $11) 35. Ne4 {[%emt 0:00:37]} (35. Ne2 $1 $14 Rxf2+ 36. Ke1) 35... c5 {[%emt 0:00:45]} 36. f4 {[%emt 0:02:19]} Kh5 {[%emt 0:00:52]} 37. Rd2 {[%emt 0:01:28][%cal Ob2b4]} g5 {[%emt 0:01:09]} 38. Ke2 {[%emt 0:01:02]} (38. Nd6 $11 Rd5 39. Ne4) 38... gxf4 $17 {[%emt 0:01:48]} 39. Kf3 {[%emt 0:00:30] [#] Hoping for g4+.} fxg3+ {[%emt 0:00:00]} 40. Kxg3 {[%emt 0:00:00]} a5 {[%emt 0:00:19]} (40... Re5 $17 41. Kf4 Kg6) 41. Kxh3 $11 {[%emt 0:00:46] And now Ng3+ would win.} Rf4 {[%emt 0:00:18]} 42. Re2 {[%emt 0:00:43]} f5 {[%emt 0:01:34]} 43. Ng3+ {[%emt 0:01:50]} Kg5 {[%emt 0:00:12]} 44. Kg2 {[%emt 0:00:39]} a4 {[%emt 0:00:50]} 45. Rc2 {[%emt 0:01:53]} Kh4 {[%emt 0:01:35]} 46. Re2 {[%emt 0:00:42]} Kg4 {[%emt 0:00:39]} 47. Rc2 {[%emt 0:02:02]} Kg5 {[%emt 0:00:05]} 48. Rd2 {[%emt 0:00:27]} Rh4 {[%emt 0:00:12]} 49. Kf3 {[%emt 0:00:43]} Bg1 {[%emt 0:01:46]} 50. Nf1 {[%emt 0:00:12]} ({Much weaker is} 50. Rd5 Rf4+ 51. Kg2 Bd4 $17) 50... Kf6 {[%emt 0:00:08][%cal Oa4a3]} 51. Re2 {[%emt 0:00:44]} Rh7 {[%emt 0:01:01]} 52. Nd2 {[%emt 0:00:33]} (52. b3 $11 {remains equal.}) 52... Bxh2 $17 {[%emt 0:00:30]} 53. b3 {[%emt 0:00:30]} axb3 {[%emt 0:00:18]} 54. axb3 {[%emt 0:01:41]} Bc7 {[%emt 0:00:00]} 55. Re8 {[%emt 0:00:00]} Rh3+ {[%emt 0:00:43]} 56. Ke2 {[%emt 0:00:02]} Rc3 {[%emt 0:01:08]} 57. Rc8 {[%emt 0:00:34]} Ba5 {[%emt 0:00:31]} 58. Nc4 {[%emt 0:01:46]} Bb4 {[%emt 0:00:35]} 59. Ne3 {[%emt 0:00:23] [#] Black must now prevent Nd5+.} Rxb3 {[%emt 0:00:09]} 60. Rf8+ {[%emt 0:00:30]} Ke5 {[%emt 0:00:00]} 61. Nxf5 {[%emt 0:01:08]} (61. Re8+ $11 {keeps the balance.} Kf6 62. Rf8+ Ke5 63. Nxf5) 61... c4 {[%emt 0:00:26]} 62. Rf7 {[%emt 0:00:37]} ({White should try} 62. Rc8) 62... Rb2+ {[%emt 0:00:16]} (62... Ke4 $142 {...Rd3 is the strong threat.} 63. Rc7 Rb2+ 64. Kd1 c3 65. Ng3+ Ke5) 63. Kd1 {[%emt 0:00:00]} Bc5 {[%emt 0:01:37] Inhibits Ne3.} (63... Rd2+ $17 64. Kc1 c3) 64. Ng3 $1 $11 {[%emt 0:01:09]} c3 {[%emt 0:01:11][%mdl 32768] Weighted Error Value: White=0.19 (very precise) /Black=0.18 (very precise) . Loss on time!?} 1-0